bitfinex-derivatives/quotes_BTCF0:USTF0_20240902
["timestamp","ask_amount","ask_price","bid_price","bid_amount"]
[1725263483344,0.008,57508.0,57507.0,4.192065]
[1725263483737,0.008,57508.0,57507.0,5.313745]
[1725263484146,0.004,57508.0,57507.0,5.38310082]
[1725263484350,0.007,57508.0,57507.0,5.313745]
[1725263484650,0.003,57508.0,57507.0,5.313745]
[1725263484845,0.004,57508.0,57507.0,5.313745]
[1725263485247,0.004,57508.0,57507.0,5.38292324]
[1725263485645,0.001,57508.0,57507.0,5.38292324]
[1725263486056,0.001,57508.0,57507.0,5.313745]
[1725263487547,0.001,57508.0,57507.0,5.31750824]
[1725263487950,0.00073923,57508.0,57507.0,5.31750824]
[1725263488249,0.00073923,57508.0,57507.0,5.40424241]
[1725263488450,0.00073923,57508.0,57507.0,5.31750824]
[1725263489256,0.00073923,57508.0,57507.0,4.19582824]
[1725263489448,0.00073923,57508.0,57507.0,4.192065]
[1725263489659,0.00073923,57508.0,57507.0,3.90061266]
[1725263489853,0.00073923,57508.0,57507.0,0.0004]
[1725263490651,0.31973479,57508.0,57507.0,0.0004]
[1725263490958,0.38059879,57508.0,57507.0,0.0004]
[1725263491349,0.38059879,57508.0,57507.0,0.05241617]
[1725263491656,0.90227879,57508.0,57507.0,0.05243057]
[1725263491959,1.26682711,57508.0,57507.0,0.05243057]
[1725263492255,0.74514711,57508.0,57507.0,0.05243057]
[1725263492451,0.79662862,57508.0,57507.0,0.0004]
[1725263492651,0.74514711,57508.0,57507.0,0.0004]
[1725263493947,0.38059879,57508.0,57507.0,0.0004]
[1725263494362,0.38059879,57508.0,57507.0,0.06974766]
[1725263494557,0.38059879,57508.0,57507.0,0.0004]
[1725263495069,0.38059879,57508.0,57507.0,0.06974766]
[1725263498559,0.19160323,57508.0,57507.0,0.06983854]
[1725263498953,0.19160323,57508.0,57507.0,0.0004]
[1725263499568,0.13073923,57508.0,57507.0,0.0004]
[1725263499859,0.00073923,57508.0,57507.0,0.0004]
[1725263500957,0.00073923,57508.0,57507.0,0.061265]
[1725263501157,0.00073923,57508.0,57507.0,0.2804307]
[1725263501459,0.00073923,57508.0,57507.0,0.19376181]
[1725263502260,0.00073923,57508.0,57507.0,0.061265]
[1725263502455,0.00073923,57508.0,57507.0,0.1937567]
[1725263505964,0.00073923,57508.0,57507.0,0.7154367]
[1725263506159,0.00073923,57508.0,57507.0,1.41951771]
[1725263506467,0.00073923,57508.0,57507.0,1.3154367]
[1725263506666,0.00073923,57508.0,57507.0,0.7154367]
[1725263506861,0.00073923,57508.0,57507.0,1.3154367]
[1725263507064,0.00073923,57508.0,57507.0,1.31543233]
[1725263507761,0.00073923,57508.0,57507.0,1.31943233]
[1725263508555,0.00026077,57510.0,57509.0,0.060863]
[1725263508767,0.00026077,57510.0,57509.0,0.33375033]
[1725263508965,0.00026077,57510.0,57509.0,1.45539033]
[1725263511971,0.00026077,57510.0,57509.0,1.45939033]
[1725263512365,0.00026077,57510.0,57509.0,0.33775033]
[1725263513062,0.00026077,57510.0,57509.0,0.34175033]
[1725263513468,0.00026077,57510.0,57509.0,0.33775033]
[1725263513670,0.00026077,57510.0,57509.0,0.34275033]
[1725263514269,0.00026077,57510.0,57509.0,0.34375033]
[1725263514970,0.00026077,57510.0,57509.0,0.33875033]
[1725263515170,0.00026077,57510.0,57509.0,0.34275033]
[1725263515368,0.00026077,57510.0,57509.0,0.34175033]
[1725263516366,0.00026077,57510.0,57509.0,0.3417488]
[1725263517979,0.00026077,57510.0,57509.0,0.8633888]
[1725263518269,0.00026077,57510.0,57509.0,0.8613888]
[1725263518475,0.00026077,57510.0,57509.0,0.8573888]
[1725263518775,0.00026077,57510.0,57509.0,0.8593888]
[1725263519380,0.00026077,57510.0,57509.0,0.8613888]
[1725263519758,0.00026077,57510.0,57509.0,0.8573888]
[1725263519959,0.00026077,57510.0,57509.0,0.8593888]
[1725263520763,0.00026077,57510.0,57509.0,0.3377488]
[1725263520970,0.00026077,57510.0,57509.0,0.3357488]
[1725263521272,0.00026077,57510.0,57509.0,0.3397488]
[1725263521773,0.00026077,57510.0,57509.0,0.3357488]
[1725263522076,0.00026077,57510.0,57509.0,0.3377488]
[1725263522370,0.060852,57519.0,57509.0,0.22366662]
[1725263522371,0.06086,57512.0,57509.0,0.22366662]
[1725263522569,0.06086,57512.0,57511.0,0.0004]
[1725263523667,0.06686,57512.0,57511.0,0.0004]
[1725263524073,0.006,57512.0,57511.0,0.3612]
[1725263524366,0.006,57512.0,57511.0,0.58046429]
[1725263524573,0.006,57512.0,57511.0,0.49368347]
[1725263524779,0.009,57512.0,57511.0,0.49368347]
[1725263525165,0.009,57512.0,57511.0,4.32454347]
[1725263525364,0.006,57512.0,57511.0,4.32454347]
[1725263525562,0.01,57512.0,57511.0,4.32454347]
[1725263527476,0.01,57512.0,57511.0,5.44618347]
[1725263527778,0.05148151,57529.0,57525.0,0.060846]
[1725263527965,0.05148151,57531.0,57528.0,0.1404]
[1725263528165,0.19953964,57531.0,57530.0,0.0004]
[1725263528368,0.05148151,57531.0,57530.0,0.06985538]
[1725263528572,0.05148151,57535.0,57530.0,0.0004]
[1725263528873,0.05148151,57536.0,57534.0,0.0004]
[1725263529075,0.05148151,57535.0,57534.0,0.0004]
[1725263529378,0.19410401,57534.0,57533.0,0.06943038]
[1725263529562,0.19410401,57534.0,57530.0,0.001]
[1725263529563,0.0004,57534.0,57532.0,0.06943038]
[1725263529874,0.19858363,57533.0,57528.0,0.202242]
[1725263530170,0.19858363,57533.0,57532.0,0.06940618]
[1725263530376,0.19858363,57533.0,57528.0,0.202242]
[1725263530572,0.19858363,57533.0,57532.0,0.06938569]
[1725263531798,0.19858363,57533.0,57531.0,0.06938569]
[1725263531983,0.0004,57532.0,57531.0,0.06938569]
[1725263532271,0.19285639,57532.0,57531.0,0.06938569]
[1725263532572,0.19285639,57532.0,57530.0,0.06938569]
[1725263532883,0.06084,57530.0,57529.0,0.06938569]
[1725263533069,0.0472,57531.0,57528.0,0.06978569]
[1725263533269,0.0004,57529.0,57528.0,0.0004]
[1725263533567,0.061241,57529.0,57528.0,0.0004]
[1725263533878,0.26060262,57529.0,57528.0,0.0004]
[1725263535069,0.26160262,57529.0,57528.0,0.0004]
[1725263536167,0.20276162,57529.0,57528.0,0.1404]
[1725263536685,0.20276162,57529.0,57528.0,0.20978569]
[1725263536882,0.20276162,57529.0,57528.0,0.1404]
[1725263537371,0.20276162,57529.0,57528.0,0.20978569]
[1725263537571,0.20276162,57529.0,57528.0,0.1404]
[1725263538091,0.0034,57529.0,57528.0,0.1404]
[1725263538886,0.0034,57529.0,57528.0,0.0004]
[1725263543978,0.064241,57529.0,57528.0,0.0004]
[1725263544275,0.064241,57529.0,57528.0,0.052389]
[1725263545072,0.064241,57529.0,57528.0,0.0004]
[1725263545383,0.25547396,57529.0,57528.0,0.0004]
[1725263546373,0.064241,57529.0,57528.0,0.1404]
[1725263546579,0.064241,57529.0,57528.0,0.1885]
[1725263548281,0.0034,57529.0,57528.0,0.1885]
[1725263548478,0.0034,57529.0,57528.0,0.25788569]
[1725263548678,0.0034,57529.0,57528.0,0.1885]
[1725263548879,0.0034,57529.0,57528.0,0.0004]
[1725263549074,0.064241,57529.0,57528.0,0.0004]
[1725263549885,0.425041,57529.0,57528.0,0.05241529]
[1725263550077,1.86759738,57529.0,57528.0,0.05241706]
[1725263550279,1.92843838,57529.0,57528.0,0.0004]
[1725263550585,0.121684,57528.0,57527.0,0.00026077]
[1725263550889,0.060849,57522.0,57520.0,0.05201706]
[1725263551085,0.52196,57521.0,57520.0,0.05201706]
[1725263551284,0.060851,57520.0,57518.0,0.05201706]
[1725263551474,0.060851,57520.0,57517.0,6e-08]
[1725263551475,0.060853,57518.0,57517.0,6e-08]
[1725263551676,0.060855,57516.0,57515.0,6e-08]
[1725263551880,0.060863,57509.0,57505.0,0.06938569]
[1725263552084,0.0004,57506.0,57505.0,0.06938569]
[1725263552292,0.05,57506.0,57505.0,0.06938569]
[1725263552486,0.24298904,57506.0,57503.0,0.06938569]
[1725263552689,0.0004,57504.0,57503.0,0.06938569]
[1725263552994,0.01,57504.0,57503.0,0.06938569]
[1725263553292,0.18761522,57504.0,57502.0,0.06938569]
[1725263553485,0.18561522,57504.0,57501.0,0.43044646]
[1725263553690,0.18561522,57504.0,57502.0,0.06938569]
[1725263554485,0.18561522,57504.0,57501.0,0.43044646]
[1725263554678,0.18461522,57504.0,57503.0,0.003]
[1725263555280,0.18461522,57504.0,57503.0,0.007]
[1725263555481,0.18461522,57504.0,57503.0,0.004]
[1725263556892,0.060867,57505.0,57503.0,0.004]
[1725263557299,0.060867,57505.0,57504.0,0.0004]
[1725263559492,0.060867,57505.0,57504.0,0.0024]
[1725263559696,0.0037142,57508.0,57504.0,0.0024]
[1725263559995,0.18458116,57507.0,57504.0,0.0024]
[1725263560185,0.24458116,57507.0,57504.0,0.0024]
[1725263560382,0.24458116,57507.0,57504.0,0.202868]
[1725263560583,0.06,57507.0,57504.0,0.202868]
[1725263560789,0.20166482,57506.0,57504.0,0.202868]
[1725263561083,0.24166482,57506.0,57504.0,0.065868]
[1725263561290,0.24166482,57506.0,57504.0,0.063868]
[1725263561502,0.24166482,57506.0,57504.0,0.065868]
[1725263562087,0.24166482,57506.0,57504.0,0.063868]
[1725263562291,0.24166482,57506.0,57504.0,0.065868]
[1725263562499,0.24166482,57506.0,57504.0,0.062868]
[1725263562690,0.24166482,57506.0,57504.0,0.065868]
[1725263563193,0.24166482,57506.0,57504.0,0.062868]
[1725263563391,0.24166482,57506.0,57504.0,0.065868]
[1725263564802,0.24166482,57506.0,57504.0,0.205868]
[1725263568011,0.24166482,57506.0,57504.0,0.065868]
[1725263569311,0.30253082,57506.0,57504.0,0.005]
[1725263569706,0.0478,57505.0,57504.0,0.005]
[1725263570005,0.1778,57505.0,57504.0,0.005]
[1725263570190,0.36340408,57505.0,57504.0,0.005]
[1725263571600,0.31560408,57505.0,57504.0,0.005]
[1725263578506,0.31560408,57505.0,57504.0,0.07438569]
[1725263579614,0.31560408,57505.0,57504.0,0.005]
[1725263581497,0.36708364,57505.0,57504.0,0.005]
[1725263581905,0.31560408,57505.0,57504.0,0.005]
[1725263583410,0.42795064,57505.0,57504.0,0.005]
[1725263583603,0.37647108,57505.0,57504.0,0.005]
[1725263583803,0.42804165,57505.0,57504.0,0.005]
[1725263584002,0.42804075,57505.0,57504.0,0.005]
[1725263584204,0.42803809,57505.0,57504.0,0.005]
[1725263584406,0.42803834,57505.0,57504.0,0.005]
[1725263585608,0.37647108,57505.0,57504.0,0.005]
[1725263587322,0.45647108,57505.0,57504.0,0.005]
[1725263589814,0.31560408,57505.0,57504.0,0.065868]
[1725263590113,0.13,57505.0,57504.0,0.19838347]
[1725263590312,0.13,57505.0,57504.0,0.3653088]
[1725263590518,0.13,57505.0,57504.0,0.27838347]
[1725263591406,0.13,57505.0,57504.0,4.04838347]
[1725263592008,0.13,57505.0,57504.0,3.96838347]
[1725263592408,0.13,57505.0,57504.0,3.96837479]
[1725263594523,0.13,57505.0,57504.0,0.19837479]
[1725263594524,0.08649932,57505.0,57504.0,0.19837479]
[1725263595307,0.08649932,57505.0,57504.0,0.24337479]
[1725263601326,0.00026077,57510.0,57509.0,0.060863]
[1725263601522,0.00026077,57510.0,57509.0,0.33376979]
[1725263601831,0.00026077,57510.0,57509.0,0.33375078]
[1725263602927,0.00026077,57510.0,57509.0,1.45539078]
[1725263603112,0.00326077,57510.0,57509.0,1.31539078]
[1725263603318,0.00326077,57510.0,57509.0,0.85539078]
[1725263604019,0.00626077,57510.0,57509.0,0.85539078]
[1725263604221,0.00626077,57510.0,57509.0,0.33375078]
[1725263604624,0.00626077,57510.0,57509.0,0.33744665]
[1725263606433,0.00626077,57510.0,57509.0,0.33744289]
[1725263606733,0.00626077,57510.0,57509.0,0.19374702]
[1725263607229,0.00626077,57510.0,57509.0,0.28052991]
[1725263607729,0.00626077,57510.0,57509.0,0.14804589]
[1725263608132,0.00626077,57510.0,57509.0,0.28053505]
[1725263608632,0.00626077,57510.0,57509.0,0.78133505]
[1725263608923,0.00626077,57510.0,57509.0,0.69455216]
[1725263611125,0.00626077,57510.0,57509.0,0.562063]
[1725263611326,0.00626077,57510.0,57509.0,0.69454939]
[1725263612231,0.00626077,57510.0,57509.0,4.41883239]
[1725263612536,0.00626077,57510.0,57509.0,4.46455198]
[1725263613723,0.00586077,57510.0,57509.0,5.58619198]
[1725263614020,0.00586077,57510.0,57509.0,5.63045604]
[1725263614349,0.00586077,57510.0,57509.0,5.52619198]
[1725263614719,0.00586077,57510.0,57509.0,5.63029837]
[1725263614919,0.00586077,57510.0,57509.0,5.52619198]
[1725263615324,0.00586077,57510.0,57509.0,5.63029536]
[1725263615726,0.00586077,57510.0,57509.0,5.63028162]
[1725263616825,0.00586077,57510.0,57509.0,5.52617824]
[1725263617744,0.00586077,57510.0,57509.0,5.63028162]
[1725263618524,0.3608,57522.0,57520.0,0.060851]
[1725263618731,0.3608,57522.0,57521.0,0.14980108]
[1725263618933,0.3608,57522.0,57521.0,0.21065108]
[1725263619129,0.0471,57525.0,57522.0,0.060848]
[1725263619334,0.0871,57525.0,57524.0,0.0804]
[1725263619526,0.0907558,57525.0,57524.0,0.0804]
[1725263620227,0.0907558,57525.0,57524.0,0.14979951]
[1725263620422,0.0871,57525.0,57524.0,0.141247]
[1725263620627,0.04,57525.0,57524.0,0.141247]
[1725263620834,0.0481,57530.0,57525.0,0.060846]
[1725263621137,0.1581,57530.0,57529.0,0.0004]
[1725263621442,0.43932542,57530.0,57529.0,0.0004]
[1725263622123,0.44295732,57530.0,57529.0,0.0004]
[1725263622321,0.44695732,57530.0,57529.0,0.0004]
[1725263623329,1.02927732,57530.0,57529.0,0.0004]
[1725263623534,1.62927732,57530.0,57529.0,0.0014]
[1725263623931,1.63027732,57530.0,57529.0,0.0024]
[1725263625536,1.63327732,57530.0,57529.0,0.0024]
[1725263625736,1.63227732,57530.0,57529.0,0.0024]
[1725263627242,1.99307732,57530.0,57529.0,0.0024]
[1725263627625,2.05307732,57530.0,57529.0,0.0024]
[1725263627831,2.05307732,57530.0,57529.0,0.0014]
[1725263627832,2.05882093,57530.0,57529.0,0.0014]
[1725263628027,2.06282093,57530.0,57529.0,0.0024]
[1725263628228,1.99407732,57530.0,57529.0,0.0024]
[1725263628636,1.98907732,57530.0,57529.0,0.0014]
[1725263628833,1.99407732,57530.0,57529.0,0.0024]
[1725263630040,2.35487732,57530.0,57529.0,0.0024]
[1725263630741,2.34987732,57530.0,57529.0,0.0014]
[1725263630936,2.35487732,57530.0,57529.0,0.0024]
[1725263633938,1.17255732,57530.0,57502.0,0.06300831]
[1725263634144,0.05155295,57521.0,57519.0,0.08]
[1725263634344,0.7216,57520.0,57519.0,0.08]
[1725263634655,0.91027152,57520.0,57519.0,0.08]
[1725263636045,0.91027152,57520.0,57519.0,0.081]
[1725263636046,0.91527152,57520.0,57519.0,0.081]
[1725263637047,0.91927152,57520.0,57519.0,0.082]
[1725263637648,0.19767152,57520.0,57519.0,0.082]
[1725263637956,0.91927152,57520.0,57519.0,0.082]
[1725263638138,0.19767152,57520.0,57519.0,0.082]
[1725263638343,0.91927152,57520.0,57519.0,0.082]
[1725263638652,0.92300283,57520.0,57519.0,0.082]
[1725263640351,0.91927152,57520.0,57519.0,0.082]
[1725263640548,0.91927152,57520.0,57519.0,0.21447007]
[1725263640761,0.7306,57520.0,57519.0,0.21447007]
[1725263642150,0.7306,57520.0,57519.0,0.13447007]
[1725263642651,0.7306,57520.0,57519.0,0.002]
[1725263642847,0.7306,57520.0,57519.0,0.13447368]
[1725263644847,0.7306,57520.0,57519.0,0.19532568]
[1725263646555,0.7306,57520.0,57519.0,0.27532568]
[1725263647459,0.7306,57520.0,57519.0,0.27532236]
[1725263649658,0.7306,57520.0,57519.0,1.39688236]
[1725263650162,0.7306,57520.0,57519.0,5.17060703]
[1725263652160,0.7306,57520.0,57519.0,5.17059127]
[1725263653451,0.7306,57520.0,57519.0,3.96903127]
[1725263653645,0.7306,57520.0,57519.0,4.04903127]
[1725263654057,0.7306,57520.0,57519.0,4.15321003]
[1725263654454,0.7266,57520.0,57519.0,4.15621003]
[1725263654760,0.7216,57520.0,57519.0,4.16021003]
[1725263655350,0.7226,57520.0,57519.0,4.15521003]
[1725263655747,0.7226,57520.0,57519.0,4.15121003]
[1725263656150,0.7246,57520.0,57519.0,4.15121003]
[1725263656369,0.7246,57520.0,57519.0,4.04703127]
[1725263656954,0.7246,57520.0,57519.0,4.15121003]
[1725263657552,0.7226,57520.0,57519.0,4.15121003]
[1725263657758,0.7286,57520.0,57519.0,4.04703127]
[1725263658062,0.7286,57520.0,57519.0,4.15121003]
[1725263658258,0.7266,57520.0,57519.0,4.15121003]
[1725263658454,0.7226,57520.0,57519.0,4.15121003]
[1725263658963,0.7236,57520.0,57519.0,4.15121003]
[1725263659375,0.7236,57520.0,57519.0,6.0551853]
[1725263659376,0.001,57520.0,57519.0,6.0551853]
[1725263659554,0.00026077,57525.0,57524.0,0.060847]
[1725263659754,0.00026077,57525.0,57524.0,0.64315]
[1725263659965,0.00026077,57525.0,57524.0,1.92586968]
[1725263660163,0.05155295,57545.0,57524.0,1.92586968]
[1725263660364,0.05155295,57545.0,57544.0,0.0004]
[1725263660365,0.12,57545.0,57544.0,0.0004]
[1725263660671,0.30161159,57545.0,57544.0,0.0004]
[1725263660862,0.30538913,57545.0,57544.0,0.0004]
[1725263661563,0.31038913,57545.0,57544.0,0.0014]
[1725263662669,0.31338913,57545.0,57544.0,0.0024]
[1725263665964,0.67418913,57545.0,57544.0,0.0024]
[1725263667370,0.73501413,57545.0,57544.0,0.0024]
[1725263667674,0.37421413,57545.0,57544.0,0.0024]
[1725263667867,0.73501413,57545.0,57544.0,0.0024]
[1725263668068,0.37421413,57545.0,57544.0,0.0024]
[1725263668272,0.73501413,57545.0,57544.0,0.0024]
[1725263668769,0.37421413,57545.0,57544.0,0.0024]
[1725263668967,0.73501413,57545.0,57544.0,0.0024]
[1725263671974,0.73001413,57545.0,57544.0,0.0014]
[1725263672171,0.73201413,57545.0,57544.0,0.0014]
[1725263672372,0.73501413,57545.0,57544.0,0.0024]
[1725263673268,0.73001413,57545.0,57544.0,0.0014]
[1725263673470,0.73501413,57545.0,57544.0,0.0024]
[1725263674069,0.73201413,57545.0,57544.0,0.0014]
[1725263674267,0.73501413,57545.0,57544.0,0.0024]
[1725263674469,0.31338913,57545.0,57544.0,0.0024]
[1725263674673,0.19338913,57545.0,57544.0,0.11519021]
[1725263674875,0.19038913,57545.0,57544.0,0.11418885]
[1725263675069,0.19038913,57545.0,57544.0,0.063226]
[1725263675265,0.19338913,57545.0,57544.0,0.063226]
[1725263675481,0.18838913,57545.0,57544.0,0.11418863]
[1725263675673,0.19338913,57545.0,57544.0,0.11518863]
[1725263675874,0.19038913,57545.0,57544.0,0.11418863]
[1725263676174,0.19038913,57545.0,57544.0,0.11718863]
[1725263676375,0.18538913,57545.0,57544.0,0.064226]
[1725263676574,0.19038913,57545.0,57544.0,0.065226]
[1725263676776,0.00877754,57545.0,57544.0,0.065226]
[1725263678078,0.00877754,57545.0,57544.0,0.062226]
[1725263678382,0.01177754,57545.0,57544.0,0.063226]
[1725263679077,0.37257754,57545.0,57544.0,0.063226]
[1725263679869,0.57083532,57545.0,57544.0,0.063226]
[1725263680076,0.63166032,57545.0,57544.0,0.05439635]
[1725263681274,0.62666032,57545.0,57544.0,0.0014]
[1725263681474,0.63166032,57545.0,57544.0,0.05439635]
[1725263681672,0.63166032,57545.0,57544.0,0.05339635]
[1725263681890,0.63166032,57545.0,57544.0,0.05439635]
[1725263682277,0.63166032,57545.0,57544.0,0.05339635]
[1725263682278,0.62666032,57545.0,57544.0,0.05339635]
[1725263682483,0.63166032,57545.0,57544.0,0.0024]
[1725263683475,0.43340254,57545.0,57544.0,0.0024]
[1725263683980,0.6203867,57545.0,57544.0,0.0024]
[1725263684179,0.6153867,57545.0,57544.0,0.0014]
[1725263684481,0.6173867,57545.0,57544.0,0.0014]
[1725263684783,0.6153867,57545.0,57544.0,0.0014]
[1725263685079,0.6203867,57545.0,57544.0,0.0024]
[1725263685478,0.6153867,57545.0,57544.0,0.0014]
[1725263685789,0.6203867,57545.0,57544.0,0.0024]
[1725263686288,0.6173867,57545.0,57544.0,0.0014]
[1725263686585,0.67193965,57545.0,57544.0,0.0024]
[1725263686778,0.6203867,57545.0,57544.0,0.0024]
[1725263688374,0.6203867,57545.0,57544.0,0.0014]
[1725263688582,0.6203867,57545.0,57544.0,0.0024]
[1725263689589,0.6153867,57545.0,57544.0,0.0014]
[1725263689881,0.6203867,57545.0,57544.0,0.0024]
[1725263690581,0.3688,57545.0,57544.0,0.063226]
[1725263690790,0.41741958,57545.0,57544.0,0.062226]
[1725263690978,0.42041958,57545.0,57544.0,0.063226]
[1725263691185,0.41541958,57545.0,57544.0,0.062226]
[1725263691484,0.3688,57545.0,57544.0,0.063226]
[1725263691690,0.3658,57545.0,57544.0,0.062226]
[1725263691895,0.3638,57545.0,57544.0,0.14883984]
[1725263692087,0.3688,57545.0,57544.0,0.14983984]
[1725263692892,0.3688,57545.0,57544.0,0.063226]
[1725263696905,0.3688,57545.0,57544.0,0.14983984]
[1725263698785,0.3688,57545.0,57544.0,0.28225755]
[1725263699799,0.3688,57545.0,57544.0,0.28225509]
[1725263701602,0.3688,57545.0,57544.0,0.19564117]
[1725263701788,0.008,57545.0,57544.0,0.28248435]
[1725263701994,0.008,57545.0,57544.0,0.19564117]
[1725263704006,0.008,57545.0,57544.0,0.27564117]
[1725263706404,0.008,57545.0,57544.0,0.27933329]
[1725263708104,0.05161958,57551.0,57544.0,0.57930729]
[1725263708395,0.41241958,57557.0,57556.0,0.060813]
[1725263708585,0.3608,57557.0,57556.0,0.060813]
[1725263708791,0.00365968,57557.0,57556.0,0.061213]
[1725263709094,0.3608,57564.0,57556.0,0.19359501]
[1725263709299,0.10311542,57581.0,57569.0,0.060799]
[1725263709300,0.05161958,57570.0,57569.0,0.060799]
[1725263709485,0.4548,57576.0,57573.0,0.060794]
[1725263709486,0.05161958,57575.0,57573.0,0.060794]
[1725263709689,0.50641958,57576.0,57574.0,0.19318382]
[1725263710001,0.47854815,57576.0,57575.0,0.05198877]
[1725263710298,0.3608,57576.0,57575.0,0.14]
[1725263710695,0.3608,57576.0,57575.0,0.19193049]
[1725263711090,0.3608,57576.0,57575.0,0.14]
[1725263711290,0.3618,57576.0,57575.0,0.141]
[1725263713297,0.3618,57576.0,57575.0,0.142]
[1725263716509,0.001,57576.0,57575.0,0.142]
[1725263717196,0.001,57576.0,57575.0,3.912]
[1725263717914,0.001,57576.0,57575.0,3.972793]
[1725263718699,0.094,57583.0,57582.0,0.14]
[1725263719000,0.094,57583.0,57582.0,0.1404]
[1725263719199,0.0485,57583.0,57582.0,0.1404]
[1725263719413,0.36453419,57586.0,57582.0,0.1404]
[1725263719601,0.36453419,57586.0,57585.0,0.0004]
[1725263720105,0.55128273,57586.0,57585.0,0.0004]
[1725263720295,0.58128273,57586.0,57585.0,0.0004]
[1725263721113,0.0087975,57600.0,57585.0,0.0004]
[1725263721114,0.3608,57600.0,57585.0,0.0004]
[1725263721299,0.1419,57599.0,57595.0,0.14]
[1725263721602,0.34515535,57599.0,57595.0,0.14]
[1725263723299,0.34515535,57599.0,57595.0,0.141]
[1725263723704,0.34515535,57599.0,57595.0,0.14]
[1725263723907,0.34515535,57599.0,57595.0,0.141]
[1725263724106,0.34515535,57599.0,57595.0,0.201771]
[1725263724300,0.060771,57596.0,57595.0,0.001]
[1725263724501,0.180771,57596.0,57595.0,0.001]
[1725263724701,0.88527913,57596.0,57595.0,0.001]
[1725263725107,0.88527913,57596.0,57595.0,0.002]
[1725263725309,0.36439913,57596.0,57595.0,0.002]
[1725263725711,0.88527913,57596.0,57595.0,0.002]
[1725263726299,0.88527913,57596.0,57595.0,0.001]
[1725263726505,0.88527913,57596.0,57595.0,0.002]
[1725263727608,0.36439913,57596.0,57595.0,0.002]
[1725263728514,0.5027,57599.0,57595.0,0.002]
[1725263728703,0.5227,57599.0,57598.0,0.0004]
[1725263730110,0.3808,57599.0,57598.0,0.0004]
[1725263730519,0.3808,57599.0,57598.0,0.062169]
[1725263730814,0.55016682,57599.0,57598.0,0.0014]
[1725263731206,0.55016682,57599.0,57598.0,0.0024]
[1725263731714,0.74093382,57599.0,57598.0,0.0024]
[1725263733211,0.88093382,57599.0,57598.0,0.0024]
[1725263733525,1.40177382,57599.0,57598.0,0.0024]
[1725263734809,0.88093382,57599.0,57598.0,0.0024]
[1725263735011,0.74093382,57599.0,57598.0,0.0024]
[1725263736415,0.551567,57599.0,57598.0,0.0024]
[1725263738122,0.4908,57599.0,57598.0,0.0024]
[1725263738318,0.4908,57599.0,57598.0,0.11505827]
[1725263738513,0.4908,57599.0,57598.0,0.063169]
[1725263740519,0.4908,57599.0,57598.0,0.062169]
[1725263740722,0.4908,57599.0,57598.0,0.063169]
[1725263742525,0.4908,57599.0,57598.0,0.13249042]
[1725263744514,0.4908,57599.0,57598.0,0.063169]
[1725263744722,0.3608,57599.0,57598.0,0.063169]
[1725263747318,0.3608,57599.0,57598.0,0.203169]
[1725263749821,0.3608,57599.0,57598.0,0.28992843]
[1725263750131,0.06435914,57603.0,57598.0,0.28992843]
[1725263750132,0.00359514,57603.0,57600.0,0.060766]
[1725263750427,0.1,57603.0,57602.0,0.0004]
[1725263750928,0.160764,57603.0,57602.0,0.0004]
[1725263752030,0.160764,57603.0,57602.0,0.0014]
[1725263753219,0.160764,57603.0,57602.0,0.0024]
[1725263754827,0.21238358,57603.0,57602.0,0.0024]
[1725263755620,0.160764,57603.0,57602.0,0.0024]
[1725263756015,0.21238358,57603.0,57602.0,0.0024]
[1725263756823,0.11238358,57603.0,57602.0,0.0024]
[1725263757125,0.1124618,57603.0,57602.0,0.0024]
[1725263757533,0.060764,57603.0,57602.0,0.0024]
[1725263761329,0.30538789,57603.0,57602.0,0.07181454]
[1725263761533,0.30538789,57603.0,57602.0,0.0024]
[1725263761741,0.37412515,57603.0,57602.0,0.0024]
[1725263762421,0.30538789,57603.0,57602.0,0.0024]
[1725263763326,0.66618789,57603.0,57602.0,0.0024]
[1725263764729,0.7521174,57603.0,57602.0,0.0024]
[1725263765539,1.78698789,57603.0,57602.0,0.0024]
[1725263770732,1.18698789,57603.0,57602.0,0.0024]
[1725263771837,1.24775189,57603.0,57602.0,0.0024]
[1725263773942,1.32775189,57603.0,57602.0,0.0024]
[1725263776035,1.93775189,57603.0,57602.0,0.0024]
[1725263777542,1.92775189,57603.0,57602.0,0.0024]
[1725263779042,2.01382012,57603.0,57602.0,0.0024]
[1725263779747,1.92775189,57603.0,57602.0,0.0024]
[1725263780651,1.92775189,57603.0,57602.0,0.0014]
[1725263781042,1.92775189,57603.0,57602.0,0.0024]
[1725263781440,1.92775189,57603.0,57602.0,0.0014]
[1725263781649,1.92775189,57603.0,57602.0,0.0024]
[1725263781959,2.28855189,57603.0,57602.0,0.0024]
[1725263787670,1.56695189,57603.0,57602.0,0.0024]
[1725263787855,2.28855189,57603.0,57602.0,0.0024]
[1725263789366,1.16775189,57603.0,57602.0,0.0024]
[1725263791372,1.16775189,57603.0,57602.0,0.0014]
[1725263791573,1.16775189,57603.0,57602.0,0.0024]
[1725263792070,0.44615189,57603.0,57602.0,0.0024]
[1725263792263,1.16775189,57603.0,57602.0,0.0024]
[1725263792466,0.44615189,57603.0,57602.0,0.0024]
[1725263792972,1.16775189,57603.0,57602.0,0.0024]
[1725263794267,1.16775189,57603.0,57602.0,0.0014]
[1725263794457,1.16775189,57603.0,57602.0,0.0024]
[1725263795660,1.68855189,57603.0,57602.0,0.0024]
[1725263796268,1.77462012,57603.0,57602.0,0.05448943]
[1725263796467,2.3667025,57603.0,57602.0,0.0024]
[1725263799868,1.6451025,57603.0,57602.0,0.0024]
[1725263800077,2.3667025,57603.0,57602.0,0.0024]
[1725263800570,1.1243745,57603.0,57594.0,0.06941454]
[1725263800775,0.49092951,57595.0,57594.0,0.06941454]
[1725263800975,0.060775,57592.0,57591.0,0.00026052]
[1725263801168,0.31289389,57592.0,57591.0,0.00026052]
[1725263801368,0.51122713,57592.0,57591.0,0.00026052]
[1725263801974,0.45850824,57592.0,57591.0,0.00026052]
[1725263802670,0.45750824,57592.0,57591.0,0.00026052]
[1725263803475,0.45850824,57592.0,57591.0,0.00126052]
[1725263804280,0.82230824,57592.0,57591.0,0.00226052]
[1725263804666,0.82604519,57592.0,57591.0,0.00226052]
[1725263805073,0.82304519,57592.0,57591.0,0.00126052]
[1725263805280,0.82304519,57592.0,57591.0,0.00226052]